Cogmind - Beta 15 @@@ ROGUE MODE // 2025.10.09 @ 16:05:27 Player: Bikerider58 Result: Destroyed by D-53 Grenadier with Mini Grenade Launcher Performance ------------- Evolutions (0) 0 Regions Visited (2) 400 Robots Destroyed (27) 135 Value Destroyed (482) 482 Prototype IDs (0) 0 Alien Tech Used (0) 0 Bonus (0) 0 TOTAL SCORE: 1017 Bonus ------- None Cogmind --------- Core Integrity 0/250 Matter 276/300 Energy 100/100 System Corruption 0% Temperature Cool (0) Movement Walking (260) Ox2 Location -10/Mines Parts ------- > --- POWER (1) -------- (None) > --- PROPULSION (2) --- Aluminum Leg > --- UTILITY (2) ------ Large Storage Unit Seismic Detector > --- WEAPON (2) ------- (None) > --- INVENTORY (15) --- Light Ion Engine Light Treads Aluminum Leg Improved Heat Sink Medium Matter Pod (100) Visual Processing Unit Improved Terrain Scanner Hacking Suite Assault Rifle Light Assault Rifle Light Assault Rifle Light Assault Rifle Grenade Launcher Grenade Launcher Mining Laser Peak State ------------ > --- POWER ------------ Ion Engine > --- PROPULSION ------- Aluminum Leg Aluminum Leg > --- UTILITY ---------- Large Storage Unit Seismic Detector > --- WEAPON ----------- Assault Rifle Assault Rifle > --- INVENTORY -------- Light Ion Engine Light Treads Aluminum Leg Aluminum Leg Improved Heat Sink Small Storage Unit Visual Processing Unit Hacking Suite Particle Gun Light Assault Rifle Light Assault Rifle Grenade Launcher Grenade Launcher Grenade Launcher [Rating: 9] Favorites ----------- Power Ion Engine Engine Ion Engine Propulsion Aluminum Leg Treads Light Treads Leg Aluminum Leg Utility Seismic Detector Device Seismic Detector Storage Large Storage Unit Weapon Assault Rifle Ballistic Gun Assault Rifle Launcher Grenade Launcher Build | -11 -10 -10 ------- Run | Yrd Mat Min Slots Evolved . | . . . Power . | . . . Propulsion . | . . . Utility . | . . . Weapon . | . . . Parts Attached 13 | 7 4 2 Power 2 | 1 1 . Engine 2 | 1 1 . Core . | . . . Reactor . | . . . Propulsion 5 | 2 2 1 Treads 2 | 2 . . Leg 3 | . 2 1 Wheel . | . . . Hover . | . . . Flight . | . . . Utility 3 | 2 1 . Device 1 | 1 . . Storage 2 | 1 1 . Processor . | . . . Hackware . | . . . Protection . | . . . Artifact . | . . . Weapon 3 | 2 . 1 Energy Gun . | . . . Energy Cannon . | . . . Ballistic Gun 2 | 2 . . Ballistic Cannon . | . . . Launcher 1 | . . 1 Special Weapon . | . . . Impact Weapon . | . . . Slashing Weapon . | . . . Piercing Weapon . | . . . Special Melee Weapon . | . . . Unidentified Prototypes . | . . . Parts Lost 5 | . . 5 Power 1 | . . 1 Propulsion 2 | . . 2 Utility . | . . . Weapon 2 | . . 2 Highest Loss Streak 4 | . . 4 To Critical Strikes . | . . . Average Backups 11 | 1 8 14 Power . | . 1 1 Propulsion 2 | . 1 2 Utility 3 | . 2 5 Weapon 4 | . 3 6 Tool/Special . | . . . Unused Backups 15 | . . 15 Power 1 | . . 1 Propulsion 2 | . . 2 Utility 5 | . . 5 Weapon 7 | . . 7 Tool/Special . | . . . Average Slot Usage (%) 99 | . 100 98 Engine 13 | . 14 13 Treads 5 | . 12 . Leg 21 | . 15 27 Device 14 | . 14 14 Storage 14 | . 14 14 Ballistic Gun 26 | . 28 24 Launcher 1 | . . 3 Peak Build Rating 9 | 7 9 9 Average Rating 8 | 4 7 8 On Entrance 5 | . 7 9 Naked Turns . | . . . Heaviest Build 31 | 15 30 31 Greatest Support 40 | 40 40 20 Greatest Overweight (x) 2 | . 2 2 Average Overweight (x) . | . . 1 Largest Inventory Capacity 15 | 8 15 15 Average Capacity 14 | 7 13 15 Most Carried 15 | 3 15 15 Average Carried 11 | 1 8 14 Final Capacity 15 | 8 15 15 Final Carried 15 | 2 15 15 Class Distribution -------------------- 64% | Scavenger-Mutant 35% | Mutant Dominant Class ---------------- Mutant | -10/Materials Scavenger-Mutant | -10/Mines Resources | -11 -10 -10 ----------- Run | Yrd Mat Min Matter Collected 778 | 280 434 64 Remotely . | . . . Salvage Created 734 | 111 517 106 Parts 68 | 9 40 19 Haulers Intercepted 1 | . 1 . Recyclers Shooed . | . . . Parts Field Recycled . | . . . Retrieved Matter . | . . . Parts Self-Destructed . | . . . Prevented . | . . . Kills | -11 -10 -10 ------- Run | Yrd Mat Min Combat Hostiles Destroyed 17 | . 11 6 Guns 15 | . 11 4 AOE 2 | . . 2 Classes Destroyed 8 | 2 6 . Worker 1 | . 1 . Tunneler 3 | 2 . 1 Hauler 1 | . 1 . Recycler 1 | 1 . . Operator 2 | . 2 . Watcher 2 | . 2 . Swarmer 9 | . 3 6 Grunt 8 | . 8 . Best Kill Streak 7 | 3 7 3 Combat Bots Only 4 | . 4 3 Max Kills in Single Turn 3 | 2 2 3 Gunslinging 1 | . 1 . Exploded 2 | . . 2 Melee . | . . . Uniques/NPCs Destroyed . | . . . Combat | -11 -10 -10 -------- Run | Yrd Mat Min Hostile Shots Fired 101 | . 52 49 Missed 23 | . 14 9 Hits 78 | . 38 40 Projectile 78 | . 38 40 AOE 11 | . . 11 Critical Strikes 1 | . 1 . Damage Taken 1139 | . 454 685 Core 302 | . 57 245 Absorbed by Shields . | . . . Core Remaining (%) 100 | 100 . . Volleys Fired 64 | 2 50 12 Largest 2 | 2 2 2 Hottest 50 | 40 40 50 Shots Fired 128 | 4 100 24 Gun 127 | 4 100 23 Cannon . | . . . Launcher 1 | . . 1 Special . | . . . Kinetic 127 | 4 100 23 Thermal . | . . . Explosive 1 | . . 1 Electromagnetic . | . . . Robot Hit Streak 17 | 3 17 3 Robot Miss Streak 7 | . 6 7 Penetration Max . | . . . Secondary Targets 2 | . 2 . Max Gunslinging Chain 1 | . 1 . Shots Hit Robots 76 | 3 65 8 Core Hits 40 | 4 29 7 Critical Kills . | . . . Critical Parts Destroyed 1 | . 1 . Critical Strikes 1 | . 1 . Destroy 1 | . 1 . Melee Attacks . | . . . Impact . | . . . Slashing . | . . . Piercing . | . . . Sneak Attacks . | . . . Combat Hostiles . | . . . Follow-up Attacks . | . . . Damage Inflicted 1031 | 50 818 163 Guns 956 | 50 814 92 Cannons . | . . . Explosions 71 | . . 71 Melee . | . . . Ramming 4 | . 4 . Kinetic 956 | 50 814 92 Thermal . | . . . Explosive 71 | . . 71 Electromagnetic . | . . . Impact . | . . . Slashing . | . . . Piercing . | . . . Highest Corruption . | . . . Average Corruption . | . . . Corruption Purged . | . . . Corruption Blocked . | . . . Overload Shots . | . . . Overflow Damage . | . . . Projectiles . | . . . Explosions . | . . . Melee . | . . . Knockbacks . | . . . Impact . | . . . Kinetic . | . . . Secondary . | . . . Self-Inflicted Damage 30 | . . 30 Shots 1 | . . 1 Rammed . | . . . Targets Rammed 3 | . 3 . Kicked 3 | . 3 . Crushed . | . . . Highest Temperature 20 | . 20 . Average Temperature 4 | . 4 . Received Heat Transfer 243 | . 243 . Siege Activations . | . . . Martial Activations . | . . . Shielding Activations . | . . . Robots Disrupted . | . . . Combat Hostiles . | . . . Robots Corrupted . | . . . Combat Hostiles . | . . . Parts Fried . | . . . Impact Corruptions . | . . . Robots Melted . | . . . Combat Hostiles . | . . . Parts Melted . | . . . Heat Transferred . | . . . Parts Sabotaged . | . . . Parts Stolen . | . . . Parts Stripped . | . . . Power Chain Reactions . | . . . Alert | -11 -10 -10 ------- Run | Yrd Mat Min Maximum Alert Level . | . . . Low Security (%) 100 | 100 100 100 Level 1 . | . . . Level 2 . | . . . Level 3 . | . . . Level 4 . | . . . Level 5 . | . . . High Security . | . . . Max Security . | . . . Peak Influence 165 | 15 165 94 Initial 24 | . 3 24 Average 55 | 2 101 22 Influence Increases 489 | 15 322 152 Destroy 0b10 Robot/C 340 | . 220 120 Destroy 0b10 Robot/NC 50 | 15 30 5 Destroy Leader 76 | . 56 20 Destroy Structure 8 | . 1 7 Lose Combat Pursuer 15 | . 15 . Influence Decreases 489 | 10 265 214 Entered New Map 40 | . 2 38 Time Decay 436 | 10 263 163 Lost Part 13 | . . 13 Squads Dispatched 2 | . 2 . Investigation . | . . . Extermination . | . . . Reinforcement 2 | . 2 . Assault . | . . . Garrison . | . . . Intercept . | . . . Searches Triggered . | . . . Construction Impeded . | . . . Haulers Reinforced . | . . . Active Scanning Responses . | . . . Cargo Convoy Interrupts . | . . . Stealth | -11 -10 -10 --------- Run | Yrd Mat Min Distress Signals 3 | . 3 . Communications Jammed . | . . . Distress Signals . | . . . Times Spotted 26 | . 18 8 Peak Tracking Total 4 | . 4 3 Tactical Retreats 1 | . 1 . Traps | -11 -10 -10 ------- Run | Yrd Mat Min Traps Triggered . | . . . Indirectly . | . . . Trap Hack Attempts . | . . . Triggered . | . . . Disarmed . | . . . Reprogrammed . | . . . Reused . | . . . Traps Extracted . | . . . Installed . | . . . Triggered . | . . . Machines | -11 -10 -10 ---------- Run | Yrd Mat Min Machines Disabled . | . . . Max in Single Turn . | . . . Machines Repaired . | . . . Machines Dismantled . | . . . Machines Sabotaged . | . . . Overloaded Fab Kills . | . . . Hacking | -11 -10 -10 --------- Run | Yrd Mat Min Machines Accessed . | . . . Terminals . | . . . Fabricators . | . . . Repair Stations . | . . . Recycling Units . | . . . Scanalyzers . | . . . Garrison Access . | . . . Total Hacks . | . . . Successful . | . . . Failed . | . . . Catastrophic . | . . . Database Lockouts . | . . . Manual . | . . . Terminals . | . . . Fabricators . | . . . Repair Stations . | . . . Recycling Units . | . . . Scanalyzers . | . . . Garrison Access . | . . . Terminal Hacks . | . . . Fabricator Hacks . | . . . Repair Station Hacks . | . . . Recycling Unit Hacks . | . . . Scanalyzer . | . . . Garrison Access Hacks . | . . . Unauthorized Hacks . | . . . Terminals . | . . . Fabricators . | . . . Repair Stations . | . . . Recycling Units . | . . . Scanalyzers . | . . . Garrison Access . | . . . Data Cores Recovered . | . . . Used . | . . . Hacking Detections . | . . . Full Trace Events . | . . . Feedback Events . | . . . Feedback Blocked . | . . . Robot Schematics Acquired . | . . . Robots Built . | . . . Authchips . | . . . Time . | . . . Total Robot Build Rating . | . . . Part Schematics Acquired . | . . . Parts Built . | . . . Authchips . | . . . Time . | . . . Total Part Build Rating . | . . . Parts Repaired . | . . . Time . | . . . Parts Recycled . | . . . Recycled Matter . | . . . Retrieved Matter . | . . . Retrieved Components . | . . . Parts Scanalyzed . | . . . Part Schematics Acquired . | . . . Parts Damaged . | . . . Bothacking | -11 -10 -10 ------------ Run | Yrd Mat Min Used RIF Installer . | . . . Robots Hacked . | . . . Non-combat . | . . . Combat . | . . . Robot Hacks Applied . | . . . Relay Couplers Released . | . . . Fabnet Peak Effective % . | . . . Robots Rewired . | . . . Allies Hacked . | . . . Hacks Repelled . | . . . Allies | -11 -10 -10 -------- Run | Yrd Mat Min Total Allies . | . . . Largest Group . | . . . Highest-Rated Group . | . . . Highest-Rated Ally . | . . . Total Orders . | . . . Ally Attacks . | . . . Total Damage . | . . . Kills . | . . . Allies Corrupted . | . . . Allies Melted . | . . . Intel | -11 -10 -10 ------- Run | Yrd Mat Min Active Infowar (turns) 1296 | 8 587 701 Seismic 1296 | 8 587 701 Robot Analysis Total . | . . . Derelict Logs Recovered 1 | . . 1 Drone Launches . | . . . Drone Recoveries . | . . . Exploration | -11 -10 -10 ------------- Run | Yrd Mat Min Turns Passed 1359 | 71 587 701 Spaces Moved 442 | 34 216 192 Core 5 | 5 . . Treads 110 | 29 81 . Legs 327 | . 135 192 Wheels . | . . . Hover . | . . . Flight . | . . . Fastest Speed 50 | 50 160 190 Average Speed 181 | 143 179 190 Slowest Speed 260 | 160 260 260 Overloaded Moves . | . . . Propulsion Burnouts . | . . . Robots Hopped . | . . . Potential Cave-ins . | . . . Cave-ins Triggered . | . . . Exploration Rate (%) 30 | 4 31 56 Regions Visited 2 Branch Regions 1 Pre-discovered Areas . | . . . Known Exits Taken . | . . . Unknown Exits Taken 2 | 1 1 . Scrap Searched . | . . . Spaces Dug . | . . . Terrain Destroyed 7 | . . 7 Melee . | . . . Projectile . | . . . AOE 7 | . . 7 Terrain Rammed . | . . . Walls Destroyed . | . . . Machines Disabled . | . . . Actions | -11 -10 -10 --------- Run | Yrd Mat Min Total 868 | 50 313 505 Wait 323 | 4 26 293 Move 440 | 33 215 192 Hop . | . . . Pick Up 19 | 4 12 3 Fast Attach 7 | 5 2 . Attach 3 | 2 . 1 Detach . | . . . Swap 4 | . 2 2 Drop 5 | . 3 2 Fire 64 | 2 50 12 Melee . | . . . Ram . | . . . Kick 3 | . 3 . Crush . | . . . Escape Stasis . | . . . Rewire . | . . . Trap . | . . . Miscellaneous . | . . . Route ------- -11/Scrapyard -10/Materials -10/Mines (discovered 1 exit: [*Exi]) History --------- Turn | Location | Event 20 | -11/Scrapyard | Discovered new exit (range 15) 72 | -11/Scrapyard | Entered Materials 317 | -10/Materials | Build established: Mutant 350 | -10/Materials | Discovered new exit (range 9) 659 | -10/Materials | Entered Mines 773 | -10/Mines | Build established: Scavenger-Mutant 1064 | -10/Mines | Deemed a non-threat by the Exiles lab entrance 1064 | -10/Mines | Discovered new exit (range 5) 1196 | -10/Mines | Core integrity fell below 50% 1302 | -10/Mines | Learned Materials trap positions 1339 | -10/Mines | Assembled infested the area 1359 | -10/Mines | Core integrity fell below 20% 1360 | -10/Mines | Destroyed by D-53 Grenadier with Mini Grenade Launcher Last Messages --------------- 01203_ Acquired 8 matter. 01206_ Acquired 3 matter. 01210_ Acquired Lgt. Assault Rifle. 01302_ Acquired derelict log, extracted data. Data stored: Materials trap records. 01339_ ALERT: Infestation in the mines, dispatching Demolisher response squad. 01347_ C-30 ARC bursts open, deploying its payload. 01349_ Ion Engine destroyed. 01349_ K-01 Serf destroyed. 01349_ K-01 Serf collects debris. 01350_ R-06 Scavenger collects Med. Matter Pod. 01351_ R-06 Scavenger destroyed. 01353_ K-01 Serf destroyed. 01354_ The unstable cave ceiling collapses. 01354_ Grenade Launcher destroyed. 01354_ Assault Rifle destroyed. 01356_ Acquired 7 matter. 01358_ Aluminum Leg destroyed. Map ----- +----------------------------------------------------+ | ?????????????????????????????????????????????????? | | ?????????????????????????????????????????????????? | | ?????????????????????????????????????????????????? | | ?????????????????????????????????????????????????? | | ?????????????????????????????????????????????????? | | ?????????????????????????????????????????????????? | | ?????????????????????????????????????????????????? | | ?????????????????????????????????????????????????? | | ?????????????????????????????????????????????????? | | ???????????????????????????? ????????????????????? | | ???????????????????????????? ???????????????????? | | ?????????????????????????? ???????????????????? | | ?????????????????????????? ????????????????????? | | ?????????????????????????? ????????????????????? | | ?????????????????????????? #????????????????????? | | ?????????????????????????? #????????????????????? | | ?????????????????????????# #????????????????????? | | ????????????????????????? ##???????????????????? | | ##??????????????????????## ##??????????????????? | | ##???????????????????### #??????????????????? | | #???????????????????# """ ##?????????????????? | | ##????????########### """ #?????????????????? | | ##???????# """ #??###????????????? | | #???????# ##?# ##???????????? | | ##??????# ######### ## #???????????? | | # ######## #??????## @ #???????????? | | ## #??????# #???????????? | | ?# ### ### #??????# #???????????? | | ## ### #?# #??????# ##???????????? | | # ## ## ##?????## #????????????? | | #??????## ##????????????? | | #????????## ##?????????????? | | ##?????????## dd #??????????????? | | ####???????????### # #??????????????? | | # ###???????????????? #?????????????? | | ## # ##??????????????? % #????????????? | | ?#### #???????????????? """ #??????###???? | | ????# #???????????????# """ #??????# ???? | | ????# ###????????????? """ #??????# #???? | | ????# #????????????? #??????# #???? | | ????#### #????????????? ### ??????# #???? | | ???????# #???????????## #??# ??????# ###?? | | #??????# #??????????## ###?# #???### ##? | | ##????# #??????????# ## ? ##??## #? | | ##??# #?########## ## #?## #????# #? | | #??# #?# ## #???####???## ##? | | ##?# ### ## #?????????## ## #?? | | ### ##### #????????## ### #?? | | * #???## #?????#### ##?# ### | | = #####????# ### #????## ##??# # | +----------------------------------------------------+ Best States ------------- Heat Dissipation 25 Energy Generation 10 Energy Capacity 250 Matter Stores 300 Matter Capacity 300 Sight Range 16 Terrain Scan Density 10 Evasion (%) 40 Recoil Reduction 2 Item Schematics ----------------- None Robot Schematics ------------------ None Fabricated ------------ Nothing Repaired ---------- Nothing Alien Tech Used ----------------- None Achievements -------------- None Challenges ------------ None Game ------ Seed LargeCombatCoupler Manual? 0 Play Time 00:07:18 Cumulative 130.1 hours Start 2025.10.09 @ 15:59:54 End 2025.10.09 @ 16:05:27 Sessions 1 Manual Loads 0 Difficulty Rogue Special Mode None Game No. 71 Rogue 66 Adventurer 5 Explorer 0 Win Type - Total 2 Types 2/0/0/0/0/0/0/0/0/0 Lore% 56 Gallery% 60 Achievement% 55 Wizard Run 0 Options --------- Layout 1 ASCII 0 Keyboard 0 Movement Numpad Keybinds 0 Fullscreen 1 Font 24/Smallcaps Map View 50x35 Zoom Use 0% Tactical HUD 1 Map Filters NONE Filters NONE Steam 1 RUN: 6f661bf5-4f3c-47ae-a044-af5acdba3735